bitfinex-derivatives/quotes_BTCF0:USTF0_20250309
["timestamp","ask_amount","ask_price","bid_price","bid_amount"]
[1741491370430,0.20861762,86172.0,86171.0,0.10102501]
[1741491371138,0.24091762,86172.0,86171.0,0.19782501]
[1741491371329,0.25281089,86172.0,86171.0,0.12818351]
[1741491371727,0.25281089,86172.0,86171.0,0.19782501]
[1741491372940,0.15087019,86172.0,86171.0,0.19782501]
[1741491373838,0.22051089,86172.0,86171.0,0.19782501]
[1741491374439,0.22051089,86172.0,86171.0,0.19784517]
[1741491374936,0.20861762,86172.0,86171.0,0.19784517]
[1741491375844,0.0696407,86172.0,86171.0,0.19784517]
[1741491376939,0.1006404,86173.0,86172.0,0.0696407]
[1741491377129,0.1006404,86173.0,86172.0,0.14975484]
[1741491377334,0.1006404,86173.0,86172.0,0.16444437]
[1741491377836,0.11208617,86173.0,86172.0,0.16444437]
[1741491378037,0.0348182,86178.0,86172.0,0.09483425]
[1741491378237,0.1025374,86176.0,86175.0,0.0696382]
[1741491378445,0.1025374,86176.0,86175.0,0.15108292]
[1741491378738,0.0329,86176.0,86175.0,0.17828925]
[1741491379149,0.1025374,86176.0,86175.0,0.19297878]
[1741491380143,0.1025374,86176.0,86175.0,0.19363458]
[1741491383244,0.1332374,86176.0,86175.0,0.19363458]
[1741491385333,0.0636,86176.0,86175.0,0.19363458]
[1741491386247,0.1332374,86176.0,86175.0,0.19363458]
[1741491392141,0.1332374,86176.0,86175.0,0.19356316]
[1741491392548,0.0636,86176.0,86175.0,0.19356316]
[1741491392753,0.0636,86176.0,86175.0,0.16615674]
[1741491395541,0.1332374,86176.0,86175.0,0.16615674]
[1741491400253,0.1332374,86176.0,86175.0,0.14902773]
[1741491400555,0.1332374,86176.0,86175.0,0.16558125]
[1741491400752,0.1332374,86176.0,86175.0,0.15089172]
[1741491400955,0.23751179,86176.0,86175.0,0.15089172]
[1741491402256,0.23751179,86176.0,86175.0,0.16549937]
[1741491402458,0.23751179,86176.0,86175.0,0.16553471]
[1741491404356,0.23751179,86176.0,86175.0,0.16552158]
[1741491404860,0.1332374,86176.0,86175.0,0.16552158]
[1741491406466,0.1332374,86176.0,86175.0,0.16551594]
[1741491408861,0.27221432,86176.0,86175.0,0.16551594]
[1741491412261,0.20257692,86176.0,86175.0,0.16551594]
[1741491412768,0.17645291,86176.0,86175.0,0.19323062]
[1741491413457,0.03747599,86176.0,86175.0,0.19323062]
[1741491413958,0.10711339,86176.0,86175.0,0.165866]
[1741491414560,0.10711339,86176.0,86175.0,0.16085154]
[1741491414765,0.10711339,86176.0,86175.0,0.16593064]
[1741491418762,0.10711339,86176.0,86175.0,0.16584587]
[1741491419362,0.10711339,86176.0,86175.0,0.09620767]
[1741491419763,0.10711339,86176.0,86175.0,0.14894585]
[1741491419968,0.10711339,86176.0,86175.0,0.16570492]
[1741491420267,0.10711339,86176.0,86175.0,0.13260492]
[1741491421861,0.10711339,86176.0,86175.0,0.11584585]
[1741491422969,0.10711339,86176.0,86175.0,0.13229548]
[1741491423875,0.10711339,86176.0,86175.0,0.11584585]
[1741491424064,0.10711339,86176.0,86175.0,0.04620765]
[1741491424962,0.0696423,86170.0,86169.0,0.25526966]
[1741491425270,0.0696423,86170.0,86169.0,0.22201153]
[1741491425271,0.4304423,86170.0,86169.0,0.22201153]
[1741491425660,0.4604423,86170.0,86169.0,0.22201153]
[1741491425868,0.0696463,86165.0,86158.0,0.00017416]
[1741491426062,0.4304463,86165.0,86158.0,0.00017416]
[1741491426462,0.4304463,86165.0,86164.0,0.32896996]
[1741491427172,0.3608,86165.0,86158.0,0.00017416]
[1741491427373,0.4304512,86159.0,86158.0,0.00017416]
[1741491427674,0.5058512,86159.0,86158.0,0.00017416]
[1741491428376,0.5386512,86159.0,86158.0,0.00017416]
[1741491430966,0.5386512,86159.0,86153.0,0.32896996]
[1741491430967,0.0696552,86154.0,86153.0,0.32896996]
[1741491431161,0.0696593,86149.0,86148.0,0.41613822]
[1741491431361,0.4304593,86149.0,86148.0,0.35451822]
[1741491431767,0.0696673,86139.0,86133.0,0.5561337]
[1741491431973,0.5058673,86139.0,86138.0,0.48712296]
[1741491432366,0.0696682,86138.0,86137.0,0.0016]
[1741491432571,0.11212975,86138.0,86130.0,0.00017406]
[1741491432770,0.4304738,86131.0,86130.0,0.00017406]
[1741491433573,0.3608,86131.0,86130.0,0.06984866]
[1741491433764,0.4608738,86131.0,86130.0,0.00017406]
[1741491434277,0.1000738,86131.0,86130.0,0.00017406]
[1741491436672,0.1324738,86131.0,86130.0,0.00017406]
[1741491439867,0.1324738,86131.0,86130.0,0.01470196]
[1741491441380,0.1324738,86131.0,86130.0,0.07920196]
[1741491443485,0.1324738,86131.0,86130.0,0.01470196]
[1741491445807,0.4932738,86131.0,86130.0,0.01470196]
[1741491446996,0.0696811,86122.0,86121.0,0.0317]
[1741491447197,0.4304811,86122.0,86121.0,0.062]
[1741491453700,0.0696811,86122.0,86121.0,0.062]
[1741491454196,0.3608,86131.0,86121.0,0.062]
[1741491454397,0.28381721,86130.0,86129.0,0.0696754]
[1741491454594,0.21414121,86130.0,86129.0,0.0696754]
[1741491454803,0.21414121,86130.0,86127.0,0.0696754]
[1741491454804,0.0696754,86129.0,86128.0,0.0622]
[1741491455392,0.1017754,86129.0,86128.0,0.0622]
[1741491455801,0.1335754,86129.0,86128.0,0.0622]
[1741491462513,0.1900475,86129.0,86128.0,0.0622]
[1741491463908,0.1261475,86129.0,86128.0,0.0622]
[1741491464414,0.1582475,86129.0,86128.0,0.0622]
[1741491464608,0.1902475,86129.0,86128.0,0.0622]
[1741491468106,0.39914297,86129.0,86128.0,0.0622]
[1741491469313,0.33504297,86129.0,86128.0,0.0622]
[1741491470722,0.36504297,86129.0,86128.0,0.0622]
[1741491470909,0.36504297,86129.0,86128.0,0.0632]
[1741491471620,0.33504297,86129.0,86128.0,0.0632]
[1741491471816,0.26536757,86129.0,86128.0,0.1328762]
[1741491472919,0.2426439,86139.0,86138.0,0.0696682]
[1741491473921,0.2426439,86139.0,86138.0,0.1324682]
[1741491474124,0.2456439,86139.0,86138.0,0.1324682]
[1741491474717,0.2476439,86139.0,86138.0,0.1324682]
[1741491475022,0.2476439,86139.0,86138.0,0.3759655]
[1741491475615,0.2476439,86139.0,86138.0,0.5259655]
[1741491475816,0.005,86139.0,86138.0,0.3759655]
[1741491485625,0.005,86139.0,86138.0,0.7367655]
[1741491490133,0.00191618,86147.0,86138.0,0.8170973]
[1741491490430,0.00017382,86147.0,86146.0,0.4304617]
[1741491490732,0.0301,86168.0,86157.0,0.0696528]
[1741491490928,0.0306,86168.0,86157.0,0.6739501]
[1741491491326,0.10433334,86159.0,86158.0,0.069652]
[1741491491632,0.10433334,86159.0,86158.0,0.131652]
[1741491491827,0.10433334,86159.0,86158.0,0.14346492]
[1741491492535,0.10433334,86159.0,86158.0,0.38696222]
[1741491492733,0.10533334,86159.0,86158.0,0.38796222]
[1741491494032,0.10833334,86159.0,86158.0,0.38796222]
[1741491495436,0.10833334,86159.0,86158.0,0.40247332]
[1741491496733,0.004,86159.0,86158.0,0.40247332]
[1741491498844,0.004,86159.0,86158.0,0.38796222]
[1741491514052,0.00017417,86167.0,86158.0,0.31831022]
[1741491514241,0.00017417,86167.0,86166.0,0.4304455]
[1741491514442,0.06477417,86167.0,86166.0,0.4304455]
[1741491515152,0.06577417,86167.0,86166.0,0.4627455]
[1741491515546,0.07177417,86167.0,86166.0,0.4637455]
[1741491516844,0.07077417,86167.0,86166.0,0.4647455]
[1741491517652,0.07077417,86167.0,86166.0,0.7082428]
[1741491533958,0.07077417,86167.0,86166.0,0.3474428]
[1741491534166,0.07077417,86167.0,86166.0,0.7082428]
[1741491534567,0.13911112,86177.0,86176.0,0.0696374]
[1741491534755,0.13911112,86177.0,86176.0,0.4304374]
[1741491535759,0.13911112,86177.0,86176.0,0.44606977]
[1741491536161,0.13911112,86177.0,86176.0,0.52138977]
[1741491536364,0.13911112,86177.0,86176.0,0.55458977]
[1741491537271,0.0321,86179.0,86176.0,0.77559029]
[1741491537474,0.033,86178.0,86177.0,0.0997366]
[1741491537772,0.13911112,86184.0,86177.0,0.0997366]
[1741491537773,0.13911112,86184.0,86181.0,0.0348163]
[1741491538070,0.13911112,86184.0,86183.0,0.4304318]
[1741491538479,0.13911112,86184.0,86183.0,0.4934318]
[1741491538672,0.13911112,86184.0,86183.0,0.50806417]
[1741491539462,0.13911112,86184.0,86183.0,0.50906417]
[1741491539971,0.0309,86189.0,86183.0,0.50906417]
[1741491540278,0.1738889,86190.0,86189.0,0.0696269]
[1741491540460,0.1738889,86190.0,86189.0,0.1449469]
[1741491540657,0.1738889,86190.0,86189.0,0.2111469]
[1741491540861,0.1738889,86190.0,86189.0,0.22577927]
[1741491542470,0.1738889,86190.0,86189.0,0.22677927]
[1741491542971,0.1738889,86190.0,86189.0,0.2121469]
[1741491543167,0.0317,86193.0,86189.0,0.14252]
[1741491543369,0.0317,86193.0,86192.0,0.0696245]
[1741491543869,0.0317,86193.0,86192.0,0.081019]
[1741491544972,0.0313,86194.0,86193.0,0.0696237]
[1741491545166,0.0313,86194.0,86193.0,0.1341237]
[1741491546566,0.0313,86194.0,86193.0,0.1351237]
[1741491547876,0.0313,86194.0,86193.0,0.15567231]
[1741491548270,0.0313,86194.0,86193.0,0.15467231]
[1741491548573,0.0313,86194.0,86193.0,0.1461237]
[1741491548971,0.0313,86194.0,86193.0,0.1381237]
[1741491549161,0.0313,86194.0,86193.0,0.1411237]
[1741491549863,0.0313,86194.0,86193.0,0.1431237]
[1741491550576,0.0313,86194.0,86193.0,0.1441237]
[1741491550975,0.0313,86194.0,86193.0,0.1391237]
[1741491551280,0.0313,86194.0,86193.0,0.1431237]
[1741491551776,0.0313,86194.0,86193.0,0.2184437]
[1741491552370,0.0313,86194.0,86193.0,0.2164437]
[1741491553075,0.0313,86194.0,86193.0,0.2154437]
[1741491553485,0.0313,86194.0,86193.0,0.2114437]
[1741491553780,0.0313,86194.0,86193.0,0.1401237]
[1741491553981,0.1009229,86194.0,86193.0,0.0756237]
[1741491554180,0.1009229,86194.0,86193.0,0.005]
[1741491554481,0.0696269,86189.0,86187.0,0.20813662]
[1741491554777,0.3956129,86191.0,86187.0,0.20813662]
[1741491554980,0.0696277,86188.0,86187.0,0.20813662]
[1741491555174,0.0696277,86188.0,86187.0,0.15823662]
[1741491555577,0.0686277,86188.0,86187.0,0.15823662]
[1741491556076,0.069631,86184.0,86183.0,0.2739671]
[1741491556283,0.430431,86184.0,86183.0,0.2561671]
[1741491556473,0.580431,86184.0,86183.0,0.2561671]
[1741491557779,0.582431,86184.0,86183.0,0.2561671]
[1741491557983,0.581431,86184.0,86183.0,0.2561671]
[1741491558888,0.0696415,86171.0,86170.0,0.101642]
[1741491559386,0.0696415,86171.0,86170.0,0.133142]
[1741491560379,0.0696415,86171.0,86170.0,0.134142]
[1741491560577,0.08114424,86171.0,86170.0,0.134142]
[1741491560786,0.0696415,86171.0,86170.0,0.134142]
[1741491561673,0.0706415,86171.0,86170.0,0.134142]
[1741491562288,0.08240487,86171.0,86170.0,0.134142]
[1741491563085,0.0706415,86171.0,86170.0,0.134142]
[1741491563482,0.0706415,86171.0,86170.0,0.14866506]
[1741491564579,0.08214308,86171.0,86170.0,0.14866506]
[1741491564788,0.001,86171.0,86170.0,0.14866506]
[1741491565289,0.001,86171.0,86170.0,0.16510322]
[1741491565487,0.001,86171.0,86170.0,0.16510186]
[1741491565988,0.0696397,86174.0,86173.0,0.0696399]
[1741491566185,0.4304384,86175.0,86174.0,0.0696391]
[1741491566374,0.4304384,86175.0,86174.0,0.0860759]
[1741491566575,0.4304384,86175.0,86174.0,0.10059896]
[1741491566576,0.3608,86175.0,86174.0,0.10059896]
[1741491568683,0.3608,86175.0,86174.0,0.10159896]
[1741491569991,0.3608,86175.0,86174.0,0.10359896]
[1741491570188,0.3608,86175.0,86174.0,0.10391268]
[1741491570485,0.0696324,86183.0,86182.0,0.0696326]
[1741491570688,0.0696324,86183.0,86182.0,0.08638312]
[1741491571197,0.0696324,86183.0,86182.0,0.10090618]
[1741491572191,0.0696324,86183.0,86182.0,0.1012101]
[1741491572786,0.0716324,86183.0,86182.0,0.1012101]
[1741491575089,0.0716324,86183.0,86182.0,0.0315775]
[1741491575595,0.0696324,86183.0,86182.0,0.0315775]
[1741491575784,0.0716324,86183.0,86182.0,0.0315775]
[1741491576391,0.0696324,86183.0,86182.0,0.0315775]
[1741491576680,0.0726324,86183.0,86182.0,0.0315775]
[1741491578490,0.0746324,86183.0,86182.0,0.0315775]
[1741491578798,0.4354324,86183.0,86182.0,0.0315775]
[1741491579387,0.4354324,86183.0,86182.0,0.01482698]
[1741491582402,0.4354324,86183.0,86182.0,0.03126972]
[1741491585802,0.4354324,86183.0,86182.0,0.06366972]
[1741491586507,0.49187069,86183.0,86182.0,0.06366972]
[1741491590196,0.69971092,86183.0,86182.0,0.06366972]
[1741491590599,0.69971092,86183.0,86182.0,0.06368127]
[1741491592501,0.69971092,86183.0,86182.0,0.04722698]
[1741491592701,0.69971092,86183.0,86182.0,0.0636752]
[1741491594308,0.49187069,86183.0,86182.0,0.0636752]
[1741491596807,0.49187069,86183.0,86182.0,0.0636871]
[1741491599806,0.49187069,86183.0,86182.0,0.04722698]
[1741491603713,0.49087069,86183.0,86182.0,0.04722698]
[1741491604414,0.49187069,86183.0,86182.0,0.04722698]
[1741491605412,0.64926573,86183.0,86182.0,0.04722698]
[1741491605824,0.64926573,86183.0,86182.0,0.06367817]
[1741491607813,0.64926573,86183.0,86182.0,0.09367817]
[1741491608720,0.64426573,86183.0,86182.0,0.09367817]
[1741491609019,0.64826573,86183.0,86182.0,0.09367817]
[1741491610419,0.64926573,86183.0,86182.0,0.09367817]
[1741491612520,0.64926573,86183.0,86182.0,0.09381889]
[1741491614617,0.64926573,86183.0,86182.0,0.09368005]
[1741491614817,0.64926573,86183.0,86182.0,0.07722698]
[1741491616816,0.64926573,86183.0,86182.0,0.09369461]
[1741491618720,0.64926573,86183.0,86182.0,0.09368853]
[1741491621037,0.64926573,86183.0,86182.0,0.07722698]
[1741491622221,0.28846573,86183.0,86182.0,0.07722698]
[1741491622422,0.64926573,86183.0,86182.0,0.07722698]
[1741491625236,0.28846573,86183.0,86182.0,0.07722698]
[1741491625434,0.64926573,86183.0,86182.0,0.07722698]
[1741491626930,0.64926573,86183.0,86182.0,0.09366783]
[1741491627535,0.28846573,86183.0,86182.0,0.09366783]
[1741491627731,0.64926573,86183.0,86182.0,0.09366783]
[1741491629232,0.28846573,86183.0,86182.0,0.09366783]
[1741491629535,0.64926573,86183.0,86182.0,0.09366783]
[1741491631931,0.64926573,86183.0,86182.0,0.07722698]
[1741491632724,0.28846573,86183.0,86182.0,0.07722698]
[1741491633038,0.64926573,86183.0,86182.0,0.16330377]
[1741491636438,0.64926573,86183.0,86182.0,0.09367117]
[1741491637142,0.64926573,86183.0,86182.0,0.09389841]
[1741491639235,0.64926573,86183.0,86182.0,0.09387287]
[1741491643246,0.64926573,86183.0,86182.0,0.09380112]
[1741491644547,0.64926573,86183.0,86182.0,0.16343372]
[1741491645544,0.64926513,86183.0,86182.0,0.16343372]
[1741491647553,0.21883333,86183.0,86182.0,0.16343372]
[1741491650349,0.28846513,86183.0,86182.0,0.16343372]
[1741491651152,0.0746318,86183.0,86182.0,0.16343372]
[1741491651449,0.0746318,86183.0,86182.0,0.1633166]
[1741491653253,0.005,86183.0,86182.0,0.1633166]
[1741491653442,0.005,86183.0,86182.0,0.16328766]
[1741491653643,0.0746318,86183.0,86182.0,0.16328766]
[1741491654248,0.005,86183.0,86182.0,0.16328766]
[1741491655557,0.005,86183.0,86182.0,0.16328916]
[1741491656156,0.14410162,86183.0,86182.0,0.16328916]
[1741491660860,0.005,86183.0,86182.0,0.16328916]
[1741491661160,0.005,86183.0,86182.0,0.16359948]
[1741491667264,0.005,86183.0,86182.0,0.16328088]
[1741491668768,0.005,86183.0,86182.0,0.14685958]
[1741491670869,0.005,86183.0,86182.0,0.16330696]
[1741491671076,0.13910162,86185.0,86184.0,0.069631]
[1741491671261,0.17398971,86190.0,86189.0,0.0696269]
[1741491671461,0.17398971,86190.0,86189.0,0.46170006]
[1741491673259,0.17398971,86190.0,86189.0,0.46182643]
[1741491673566,0.17398971,86194.0,86189.0,0.39219953]
[1741491673761,0.17398971,86194.0,86193.0,0.0696237]
[1741491673966,0.17398971,86194.0,86193.0,0.08619625]
[1741491674770,0.17398971,86194.0,86193.0,0.10102323]
[1741491674969,0.17398971,86194.0,86193.0,0.17579368]
[1741491675473,0.17398971,86194.0,86193.0,0.17582825]
[1741491676570,0.17498971,86194.0,86193.0,0.17682825]
[1741491677373,0.17498971,86194.0,86193.0,0.17683855]
[1741491677569,0.001,86194.0,86193.0,0.17683855]
[1741491679672,0.0335,86194.0,86193.0,0.17683855]
[1741491681575,0.0335,86194.0,86193.0,0.17683478]
[1741491683576,0.0641,86194.0,86193.0,0.17685019]
[1741491684072,0.0335,86194.0,86193.0,0.17685019]
[1741491687177,0.0666,86194.0,86193.0,0.17685019]
[1741491688377,0.0666,86194.0,86193.0,0.16527974]
[1741491688683,0.1362229,86194.0,86193.0,0.16527974]
[1741491689684,0.14790754,86194.0,86193.0,0.16527974]
[1741491690473,0.50870754,86194.0,86193.0,0.09565604]
[1741491690680,0.50870754,86194.0,86193.0,0.03245604]
[1741491691677,0.0696294,86186.0,86185.0,0.20791033]
[1741491691886,0.4304294,86186.0,86185.0,0.20791033]
[1741491692379,0.4926294,86186.0,86185.0,0.20791033]
[1741491692781,0.4936294,86186.0,86185.0,0.20791033]
[1741491694688,0.069631,86184.0,86183.0,0.00017406]
[1741491694888,0.430431,86184.0,86183.0,0.00017406]
[1741491695386,0.493131,86184.0,86183.0,0.00017406]
[1741491696105,0.495131,86184.0,86183.0,0.00017406]
[1741491698890,0.0696415,86171.0,86170.0,0.0327]
[1741491699092,0.0696455,86166.0,86165.0,0.0326]
[1741491699986,0.0696455,86166.0,86165.0,0.1022463]
[1741491700187,0.1007455,86166.0,86165.0,0.0326]
[1741491700393,0.1007455,86166.0,86165.0,0.0346]
[1741491700691,0.1007455,86166.0,86165.0,0.0673]
[1741491701798,0.1007455,86166.0,86165.0,0.1369463]
[1741491702798,0.1007455,86166.0,86165.0,0.1389463]
[1741491702998,0.1007455,86166.0,86165.0,0.0693]
[1741491703190,0.1124134,86166.0,86165.0,0.0693]
[1741491703391,0.1124134,86166.0,86165.0,0.0367]
[1741491703697,0.1124134,86166.0,86165.0,0.05337117]
[1741491703996,0.1124134,86166.0,86165.0,0.06824703]
[1741491705302,0.1124134,86166.0,86165.0,0.03554703]
[1741491708199,0.1124134,86166.0,86165.0,0.03524847]
[1741491710102,0.1124134,86166.0,86165.0,0.03529505]
[1741491713596,0.4732134,86166.0,86165.0,0.03529505]
[1741491720203,0.4732134,86166.0,86165.0,0.03527539]
[1741491721204,0.4421134,86166.0,86165.0,0.03527539]
[1741491721601,0.4421134,86166.0,86165.0,0.03533882]
[1741491723807,0.4421134,86166.0,86165.0,0.03537661]
[1741491725006,0.0813134,86166.0,86165.0,0.03537661]
[1741491725419,0.0116679,86166.0,86165.0,0.10502291]
[1741491725712,0.0696441,86168.0,86167.0,0.0696447]
[1741491725913,0.0696441,86168.0,86167.0,0.08620526]
[1741491726209,0.08105818,86168.0,86167.0,0.08620526]
[1741491726412,0.01141408,86168.0,86167.0,0.18130526]
[1741491726613,0.3608,86169.0,86168.0,0.0696439]
[1741491726815,0.3608,86169.0,86168.0,0.08620446]
[1741491727013,0.3608,86169.0,86168.0,0.14860446]
[1741491727211,0.4304431,86169.0,86168.0,0.14860446]
[1741491727617,0.4304431,86169.0,86168.0,0.16342051]
[1741491727914,0.44211088,86169.0,86168.0,0.16360289]
[1741491728306,0.01166778,86169.0,86168.0,0.16360289]
[1741491728506,0.20878765,86171.0,86170.0,0.0696423]
[1741491728713,0.20878765,86171.0,86170.0,0.08638524]
[1741491728914,0.27842915,86171.0,86170.0,0.08638524]
[1741491729114,0.27842915,86171.0,86170.0,0.10120129]
[1741491729913,0.27842915,86171.0,86170.0,0.10220129]
[1741491731809,0.0696415,86171.0,86170.0,0.03255899]
[1741491732415,0.0696415,86171.0,86170.0,0.10220129]
[1741491733422,0.0696415,86171.0,86170.0,0.01581605]
[1741491734128,0.1022415,86171.0,86170.0,0.01581605]
[1741491734732,0.1022415,86171.0,86170.0,0.001]
[1741491735335,0.0696415,86171.0,86170.0,0.001]
[1741491736438,0.0696431,86169.0,86168.0,0.0624]
[1741491736640,0.4304431,86169.0,86168.0,0.0624]
[1741491738030,0.4314431,86169.0,86168.0,0.0624]
[1741491741837,0.4314431,86169.0,86168.0,0.07696345]
[1741491743034,0.4314431,86169.0,86168.0,0.0624]
[1741491743431,0.4314431,86169.0,86168.0,0.1320439]
[1741491744241,0.0706431,86169.0,86168.0,0.1320439]
[1741491744432,0.4314431,86169.0,86168.0,0.1320439]
[1741491744939,0.4314431,86169.0,86168.0,0.0624]
[1741491745640,0.4314431,86169.0,86168.0,0.07696951]
[1741491745828,0.4623431,86169.0,86168.0,0.0624]
[1741491746033,0.4314431,86169.0,86168.0,0.0624]
[1741491746233,0.4955431,86169.0,86168.0,0.0624]
[1741491746634,0.1347431,86169.0,86168.0,0.0624]
[1741491746834,0.4955431,86169.0,86168.0,0.0624]
[1741491748536,0.0696504,86160.0,86159.0,0.0307]
[1741491748735,0.4304504,86160.0,86159.0,0.0307]
[1741491749337,0.4304504,86160.0,86159.0,0.0927]
[1741491749937,0.4304504,86160.0,86159.0,0.0957]
[1741491750143,0.4304504,86160.0,86159.0,0.0977]
[1741491751346,0.0696504,86160.0,86159.0,0.0977]
[1741491751548,0.4304504,86160.0,86159.0,0.0977]
[1741491752148,0.4304504,86160.0,86159.0,0.067]
[1741491753646,0.4304504,86160.0,86159.0,0.08163444]
[1741491754548,0.4304504,86160.0,86159.0,0.09806725]
[1741491754849,0.4920504,86160.0,86159.0,0.09806725]
[1741491756538,0.4920504,86160.0,86159.0,0.09808335]
[1741491757649,0.4920504,86160.0,86159.0,0.09608335]
[1741491757850,0.4940504,86160.0,86159.0,0.09608335]
[1741491758353,0.4940504,86160.0,86159.0,0.09308335]
[1741491760755,0.4940504,86160.0,86159.0,0.09309387]
[1741491764858,0.4940504,86160.0,86159.0,0.09315794]
[1741491766161,0.4324504,86160.0,86159.0,0.09315794]
[1741491769755,0.3628,86160.0,86159.0,0.16280914]
[1741491769955,0.4324504,86160.0,86159.0,0.16280914]
[1741491771153,0.0716504,86160.0,86159.0,0.16280914]
[1741491773463,0.002,86160.0,86159.0,0.16280914]
[1741491773760,0.0716504,86160.0,86159.0,0.16280914]
[1741491775056,0.0716504,86160.0,86159.0,0.16301867]
[1741491776762,0.0706504,86160.0,86159.0,0.16301867]
[1741491777674,0.0716504,86160.0,86159.0,0.16301867]
[1741491780980,0.0696504,86160.0,86159.0,0.16301867]
[1741491781166,0.0716504,86160.0,86159.0,0.16301867]
[1741491782074,0.0716504,86160.0,86159.0,0.09336747]
[1741491782260,0.0716504,86160.0,86159.0,0.16301867]
[1741491782461,0.002,86160.0,86159.0,0.16301867]
[1741491783663,0.0716504,86160.0,86159.0,0.16301867]
[1741491785359,0.002,86160.0,86159.0,0.16301867]
[1741491785770,0.17388652,86162.0,86161.0,0.0696496]
[1741491785964,0.17388652,86162.0,86161.0,0.08638263]
[1741491786164,0.17388652,86162.0,86161.0,0.10101707]
[1741491787276,0.17388652,86162.0,86161.0,0.10201707]
[1741491787472,0.17388652,86162.0,86161.0,0.11385922]
[1741491789369,0.17388652,86162.0,86161.0,0.17675922]
[1741491790277,0.10439419,86163.0,86162.0,0.0696488]
[1741491790477,0.10439419,86163.0,86162.0,0.14928183]
[1741491791372,0.10439419,86163.0,86162.0,0.16391627]
[1741491791970,0.10439419,86163.0,86162.0,0.14718324]
[1741491792473,0.17404209,86163.0,86162.0,0.14718324]
[1741491793478,0.17404209,86163.0,86162.0,0.1325488]
[1741491794771,0.0696479,86163.0,86162.0,0.1335488]
[1741491795664,0.1014479,86163.0,86162.0,0.1335488]
[1741491796070,0.0696479,86163.0,86162.0,0.1335488]
[1741491797075,0.0696479,86163.0,86162.0,0.1325488]
[1741491797475,0.0666228,86166.0,86162.0,0.0629]
[1741491797665,0.0696467,86165.0,86164.0,0.0696463]
[1741491799073,0.1012467,86165.0,86164.0,0.0696463]
[1741491799566,0.1022467,86165.0,86164.0,0.0696463]
[1741491800975,0.0706467,86165.0,86164.0,0.0696463]
[1741491801574,0.1010467,86165.0,86164.0,0.0696463]
[1741491803679,0.1010467,86165.0,86164.0,0.0706463]
[1741491804177,0.1010467,86165.0,86164.0,0.0696463]
[1741491805472,0.1000467,86165.0,86164.0,0.0696463]
[1741491806178,0.1303467,86165.0,86164.0,0.0696463]
[1741491807075,0.0348239,86164.0,86163.0,0.0696479]
[1741491807475,0.0991239,86164.0,86163.0,0.0696479]
[1741491809575,0.1001239,86164.0,86163.0,0.0696479]
[1741491811576,0.1001239,86164.0,86163.0,0.0706479]
[1741491811776,0.0991239,86164.0,86163.0,0.0706479]
[1741491812683,0.1001239,86164.0,86163.0,0.0706479]
[1741491813281,0.1001239,86164.0,86163.0,0.0696479]
[1741491813482,0.001,86164.0,86163.0,0.0696479]
[1741491813882,0.0706471,86164.0,86163.0,0.0696479]
[1741491815482,0.001,86164.0,86163.0,0.0696479]
[1741491817088,0.001,86164.0,86163.0,0.1002479]
[1741491818781,0.0706471,86164.0,86163.0,0.1002479]
[1741491821484,0.0696471,86164.0,86163.0,0.1002479]
[1741491822392,0.0706471,86164.0,86163.0,0.1002479]
[1741491827482,0.0696471,86164.0,86163.0,0.1002479]
[1741491830791,0.0696471,86164.0,86163.0,0.1012479]
[1741491839199,0.20870882,86167.0,86165.0,0.0696463]
[1741491839401,0.17388652,86167.0,86166.0,0.1639455]
[1741491839604,0.08933322,86167.0,86166.0,0.1639455]
[1741491839798,0.20878765,86172.0,86171.0,0.0696415]
[1741491840298,0.20878765,86173.0,86171.0,0.0696415]
[1741491840496,0.20878765,86173.0,86172.0,0.1312407]
[1741491842503,0.20878765,86173.0,86172.0,0.14316128]
[1741491843203,0.21078765,86173.0,86172.0,0.14316128]
[1741491843398,0.17899765,86173.0,86172.0,0.50836128]
[1741491844705,0.2426439,86183.0,86172.0,0.58872058]
[1741491844903,0.2426439,86183.0,86182.0,0.4304326]
[1741491845402,0.13913039,86186.0,86185.0,0.0696302]
[1741491845996,0.13913039,86186.0,86185.0,0.1332302]
[1741491847998,0.14013039,86186.0,86185.0,0.1342302]
[1741491848400,0.14013039,86186.0,86185.0,0.14604337]
[1741491850199,0.001,86186.0,86185.0,0.14604337]
[1741491853308,0.001,86186.0,86185.0,0.51124337]
[1741491865717,0.0327,86187.0,86186.0,0.0696294]
[1741491865906,0.0327,86187.0,86186.0,0.4304294]
[1741491866214,0.0327,86187.0,86186.0,0.4912294]
[1741491867311,0.0327,86187.0,86186.0,0.4932294]
[1741491868010,0.0327,86187.0,86186.0,0.4952294]
[1741491869509,0.0655,86187.0,86186.0,0.4952294]
[1741491870514,0.1351285,86187.0,86186.0,0.4932294]
[1741491870714,0.1351285,86187.0,86186.0,0.4952294]
[1741491871507,0.0655,86187.0,86186.0,0.4952294]
[1741491872920,0.1351285,86187.0,86186.0,0.4922294]
[1741491873521,0.1351285,86187.0,86186.0,0.4942294]
[1741491873917,0.1351285,86187.0,86186.0,0.4932294]
[1741491874624,0.1351285,86187.0,86186.0,0.1324294]
[1741491875115,0.1351285,86187.0,86186.0,0.0716294]
[1741491875312,0.1351285,86187.0,86186.0,0.0706294]
[1741491875516,0.1351285,86187.0,86186.0,0.1322294]
[1741491875717,0.1351285,86187.0,86186.0,0.34021339]
[1741491876117,0.1361285,86187.0,86186.0,0.34021339]
[1741491876426,0.1361285,86187.0,86186.0,0.20798399]
[1741491877823,0.1361285,86187.0,86186.0,0.27761339]
[1741491879323,0.1361285,86187.0,86186.0,0.0696294]
[1741491879822,0.1361285,86187.0,86186.0,0.1346294]
[1741491880327,0.0665,86187.0,86186.0,0.1346294]
[1741491880523,0.001,86187.0,86186.0,0.1346294]
[1741491881925,0.0628,86189.0,86188.0,0.0696277]
[1741491882527,0.0628,86189.0,86188.0,0.1319277]
[1741491882931,0.0628,86189.0,86188.0,0.1329277]
[1741491883528,0.0628,86189.0,86188.0,0.1339277]
[1741491884525,0.1324269,86189.0,86188.0,0.1339277]
[1741491889638,0.0628,86189.0,86188.0,0.1339277]
[1741491891039,0.0305,86189.0,86188.0,0.1339277]
[1741491891440,0.0305,86189.0,86188.0,0.1329277]
[1741491892034,0.10431176,86190.0,86189.0,0.0696269]
[1741491892235,0.10431176,86190.0,86189.0,0.1346269]
[1741491893339,0.10431176,86190.0,86189.0,0.1356269]
[1741491894334,0.10431176,86190.0,86189.0,0.1366269]
[1741491895645,0.10431176,86190.0,86189.0,0.1356269]
[1741491895846,0.10431176,86190.0,86189.0,0.1366269]
[1741491896047,0.0333,86191.0,86190.0,0.0696261]
[1741491896244,0.0333,86191.0,86190.0,0.1331261]
[1741491896652,0.0666,86191.0,86190.0,0.1331261]
[1741491896948,0.1362253,86191.0,86190.0,0.1331261]
[1741491898945,0.1362253,86191.0,86190.0,0.1341261]
[1741491900052,0.24053706,86191.0,86190.0,0.1341261]
[1741491902844,0.24053706,86191.0,86190.0,0.1331261]